Body Name,Body,Service Level,Expense Type,Expense Code,Narrative,Date,Transaction Number,Amount,Capital and Revenue,Supplier Name,Supplier ID
South Ribble Borough Council,http://statistics.data.gov.uk/id/local-authority/30UE,Recreation & Sport,Publicity & Promotion,4842,"BHM ESF WPHC output allocation certificates Jul - Dec 23, Total = 732.50 no VAT",17/01/2024,0000495279,732.5,Revenue,ACTIVE LANCASHIRE,0
South Ribble Borough Council,http://statistics.data.gov.uk/id/local-authority/30UE,Recreation & Sport,Reactive Repair & Maintenance,2020,Emergency Plumbing Works to Penwortham Leisure Centre Plant Room To attend site to ascertain how to replace a leaking valve on th,03/01/2024,0000495018,900,Revenue,Ainscoe Plumbing & Heating Ltd,0
South Ribble Borough Council,http://statistics.data.gov.uk/id/local-authority/30UE,Capital,Cap Contract Payment,C230,"Design & Build of metal framed glass house at the walled garden, Worden Park",24/01/2024,0000495659,46746.51,Revenue,Alitex Ltd,0
South Ribble Borough Council,http://statistics.data.gov.uk/id/local-authority/30UE,Local Tax Collection,Bank Charges,4811,post office,10/01/2024,0000495192,558.68,Revenue,ALLPAY LTD,0
South Ribble Borough Council,http://statistics.data.gov.uk/id/local-authority/30UE,Central Support Services,Agency Staff,1121,NAME REDACTED w/e 03/12/2023 - Week 35,17/01/2024,0000495256,5290.56,Revenue,ALS Managed Services Ltd,0
South Ribble Borough Council,http://statistics.data.gov.uk/id/local-authority/30UE,Central Support Services,Agency Staff,1121,NAME REDACTED w/e 24/12/2023 - Week 38,17/01/2024,0000495282,2782.54,Revenue,ALS Managed Services Ltd,0
South Ribble Borough Council,http://statistics.data.gov.uk/id/local-authority/30UE,Central Support Services,Agency Staff,1121,NAME REDACTED w/e 17/12/2023 - Week 37,24/01/2024,0000495387,8220.57,Revenue,ALS Managed Services Ltd,0
South Ribble Borough Council,http://statistics.data.gov.uk/id/local-authority/30UE,Central Support Services,Agency Staff,1121,NAME REDACTED w/e 31/12/2023 - Week 39,24/01/2024,0000495441,7626.71,Revenue,ALS Managed Services Ltd,0
South Ribble Borough Council,http://statistics.data.gov.uk/id/local-authority/30UE,Central Support Services,Agency Staff,1121,NAME REDACTED w/e 10/12/2023 - Week 36,24/01/2024,0000495442,5081.21,Revenue,ALS Managed Services Ltd,0
South Ribble Borough Council,http://statistics.data.gov.uk/id/local-authority/30UE,Central Support Services,Agency Staff,1121,NAME REDACTED w/e 26/11/2023 - Week 34,24/01/2024,0000495480,5099.46,Revenue,ALS Managed Services Ltd,0
South Ribble Borough Council,http://statistics.data.gov.uk/id/local-authority/30UE,Central Support Services,Agency Staff,1121,NAME REDACTED w/e 07/01/2024 - Week 40,31/01/2024,0000495703,4500.52,Revenue,ALS Managed Services Ltd,0
South Ribble Borough Council,http://statistics.data.gov.uk/id/local-authority/30UE,Community Development,Miscellaneous Expenses,4851,0,31/01/2024,0000495589,625,Revenue,Angela Nolan,0
South Ribble Borough Council,http://statistics.data.gov.uk/id/local-authority/30UE,Democratic Represent and  Mgnt,External Catering Charges,4575,"Catering Event for 150 People, Evening of 6th December 2023",17/01/2024,0000495400,2100,Revenue,Artisan Deli Limited,0
South Ribble Borough Council,http://statistics.data.gov.uk/id/local-authority/30UE,Community Development,External Catering Charges,4575,"HAF Winter Catering - 2nd to 5th Jan 24, Lunches @ 5 each, Tuesday x75 = 375.00, Wednesday x75 = 375.00, Thursday x115 = 575.",31/01/2024,0000495621,1700,Revenue,Artisan Deli Limited,0
South Ribble Borough Council,http://statistics.data.gov.uk/id/local-authority/30UE,Central Support Services,Miscellaneous Expenses,4851,"Electoral Services Team Leader, , Publication of advertisement on the website, Email notification to all AEA members upon first p",17/01/2024,0000495245,833.69,Revenue,ASSOC OF ELECTORAL ADMINISTRATORS LTD,0
South Ribble Borough Council,http://statistics.data.gov.uk/id/local-authority/30UE,Central Support Services,IT Consumables,413A,"DM-1-30, Diplomat Pluggable Microphone Gooseneck Stem 30 cm, 2 185.00 370.00, DCAB-P/5, Diplomat Patch Cable (CAT5e S/FTP) 5m, ",03/01/2024,0000494803,528.8,Revenue,AUDITEL,0
South Ribble Borough Council,http://statistics.data.gov.uk/id/local-authority/30UE,Central Support Services,Planned Annual Repair & Maintenance,2021,"2023/2024 to service the roller shutter doors at �, �Moss side depot, PR26 7UX, �Leyland market, PR25 2AA , �Civic centre, West p",10/01/2024,0000495075,514.5,Revenue,AVALON DOORS & AWNINGS LTD,0
South Ribble Borough Council,http://statistics.data.gov.uk/id/local-authority/30UE,Surplus or Deficit on Trading,Reactive Repair & Maintenance,2020,"Strip down and dispose of existing roller shutter and replace with one new single skin galvanised steel roller shutter, interior ",24/01/2024,0000495455,2225,Revenue,AVALON DOORS & AWNINGS LTD,0
South Ribble Borough Council,http://statistics.data.gov.uk/id/local-authority/30UE,Housing Advice,Contributions to Other Bodies,4730,AFFORDABLE WARMTH SCHEME FOR INSULATION WORKS AT ADDRESS REDACTED AS PER QUOTE SUPPLIED OF 572.00 (NO VAT),10/01/2024,0000493706,572,Revenue,Bartons of Duke Street Ltd,0
South Ribble Borough Council,http://statistics.data.gov.uk/id/local-authority/30UE,Housing Advice,Contributions to Other Bodies,4730,AFFORDABLE WARMTH SCHEME FOR INSULATION WORK AT ADDRESS REDACTED AS PER QUOTE SUPPLIED OF 1038.00 INC VAT,17/01/2024,0000495287,1038,Revenue,Bartons of Duke Street Ltd,0
South Ribble Borough Council,http://statistics.data.gov.uk/id/local-authority/30UE,Capital,Capital Grant,C570,DFG WORK FOR ADAPTATION FOR LEVEL ACCESS SHOWER ADAPTATION AT ADDRESS REDACTED AS PER SRBC PLANS AND QUOTE SUPPLI,24/01/2024,0000495502,6319,Revenue,Bartons of Duke Street Ltd,0
South Ribble Borough Council,http://statistics.data.gov.uk/id/local-authority/30UE,Homelessness,Temporary Accommodation,5311,"Purchase order for Bay Roomz hotel in Morecambe for homelessness placements between 1 December 2023 and 1 January 2024., , We boo",24/01/2024,0000495622,1920,Revenue,Bay Roomz Ltd,0
South Ribble Borough Council,http://statistics.data.gov.uk/id/local-authority/30UE,Central Support Services,Planned Annual Repair & Maintenance,2021,"Investigate current armorerd cable, following perimeter fence line., Supply and install external yard lighting including MEWP hir",24/01/2024,0000495448,2000,Revenue,BELEC ELECTRICAL LTD,0
South Ribble Borough Council,http://statistics.data.gov.uk/id/local-authority/30UE,Recreation & Sport,Materials General,4040,"Multipurpose Holdall 30.00, Acti Gym Complete 640.00, Kin-Ball 417.00, , Free shipping, Total = 1,087.00 ex vat",31/01/2024,0000495729,1087,Revenue,Bishop Sports & Leisure Ltd,0
South Ribble Borough Council,http://statistics.data.gov.uk/id/local-authority/30UE,Short Term Creditors,Amount Paid,0030,Blues and Twos - Dec 23 Deductions from Payroll,17/01/2024,0000495363,6335,Revenue,Blues and Twos Credit Union,0
South Ribble Borough Council,http://statistics.data.gov.uk/id/local-authority/30UE,Community Development,Professional Fees,4510,"HAF Delivery Winter 23/24 - 200 places, Lunches @ 5 each = 1,000, Half payment of 200 places @ 10 each = 1,000, , Total = 2,",24/01/2024,0000495431,2000,Revenue,Box Clever CIC,0
South Ribble Borough Council,http://statistics.data.gov.uk/id/local-authority/30UE,Capital,Cap Contract Payment,C230,"Leyland Town Deal - Demolition and Asbestos Removal at the Former Engineering Works Site at Quin Street, Leyland",24/01/2024,0000494010,5000,Revenue,Bradley Demolition Limited,0
South Ribble Borough Council,http://statistics.data.gov.uk/id/local-authority/30UE,Capital,Cap Contract Payment,C230,repacement for original inv-4820 cancelled out by CRECIT CN-4870,10/01/2024,0000494934,5500,Revenue,Bradley Demolition Limited,0
South Ribble Borough Council,http://statistics.data.gov.uk/id/local-authority/30UE,Capital,Cap Contract Payment,C230,"Additional Variations to Contract (EA1, EAI2, EAI3, EAI4, EAI5) - Leyland Town Deal, Demolition and Asbestos Removal at the Forme",24/01/2024,0000495477,5775,Revenue,Bradley Demolition Limited,0
South Ribble Borough Council,http://statistics.data.gov.uk/id/local-authority/30UE,Capital,Cap Contract Payment,C230,"Leyland Town Deal - Demolition and Asbestos Removal at the Former Engineering Works Site at Quin Street, Leyland",24/01/2024,0000495478,5000,Revenue,Bradley Demolition Limited,0
South Ribble Borough Council,http://statistics.data.gov.uk/id/local-authority/30UE,Capital,Cap Contract Payment,C230,"Additional Variations to Contract (EA1, EAI2, EAI3, EAI4, EAI5) - Leyland Town Deal, Demolition and Asbestos Removal at the Forme",24/01/2024,0000495504,12564,Revenue,Bradley Demolition Limited,0
South Ribble Borough Council,http://statistics.data.gov.uk/id/local-authority/30UE,Capital,Cap Contract Payment,C230,"Additional Variations to Contract (EA1, EAI2, EAI3, EAI4, EAI5) - Leyland Town Deal, Demolition and Asbestos Removal at the Forme",24/01/2024,0000495505,43000,Revenue,Bradley Demolition Limited,0
South Ribble Borough Council,http://statistics.data.gov.uk/id/local-authority/30UE,Capital,Cap Contract Payment,C230,"Additional Variations to Contract (EA1, EAI2, EAI3, EAI4, EAI5) - Leyland Town Deal, Demolition and Asbestos Removal at the Forme",24/01/2024,0000495506,2988.5,Revenue,Bradley Demolition Limited,0
South Ribble Borough Council,http://statistics.data.gov.uk/id/local-authority/30UE,Capital,Cap Contract Payment,C230,"Leyland Town Deal - Demolition and Asbestos Removal at the Former Engineering Works Site at Quin Street, Leyland",24/01/2024,0000495507,148000,Revenue,Bradley Demolition Limited,0
South Ribble Borough Council,http://statistics.data.gov.uk/id/local-authority/30UE,Central Support Services,Materials General,4040,"2x Suction box wheels, 2x S/box Castors, 2x Brush Motors, VIN REDACTED, JFC 21126",17/01/2024,0000495288,840.52,Revenue,Bucher Municipal Ltd,0
South Ribble Borough Council,http://statistics.data.gov.uk/id/local-authority/30UE,Central Support Services,Materials General,4040,"2x Wheel- rubber/Nylon 0100x50 Bin 183 @ 33.96ea, 2x Castor- 125 Wheel Height 165 swivel Bin 184 @ 77.43ea, 2x Motor- Hydraulic",31/01/2024,0000495750,840.52,Revenue,Bucher Municipal Ltd,0
South Ribble Borough Council,http://statistics.data.gov.uk/id/local-authority/30UE,Capital,Cap Contract Payment,C230,"2 x Pavestone Premium Calibrated Sandstone Paving (Buff) - 20.70m� Contractor Pack - 398.27, 25 x Hanson Castle Cement- 5.90 ea",31/01/2024,0000495413,944.04,Revenue,C & W BERRY LTD,0
South Ribble Borough Council,http://statistics.data.gov.uk/id/local-authority/30UE,Capital,Cap Contract Payment,C230,"Main Contract - Jubilee Gardens Extra Care, West Paddock, Leyland, Construction Contract for Extra Care Facility, Instruction as ",24/01/2024,0000495452,406198.12,Revenue,Caddick Construction (NW) Ltd,0
South Ribble Borough Council,http://statistics.data.gov.uk/id/local-authority/30UE,Capital,Consultancy,C259,"Section 73 Planning Reports Update (Transport, Drainage Strategy and SuDS O&M manual reports)",24/01/2024,0000490608,2250,Revenue,Campbell Reith Hill LLP,0
South Ribble Borough Council,http://statistics.data.gov.uk/id/local-authority/30UE,Capital,Consultancy,C259,Jubilee Gardens Project - RIBA Stage 4 re-design,24/01/2024,0000491241,17225,Revenue,Campbell Reith Hill LLP,0
South Ribble Borough Council,http://statistics.data.gov.uk/id/local-authority/30UE,Capital,Consultancy,C259,Jubilee Gardens Project - RIBA Stage 4 re-design,24/01/2024,0000493982,4340,Revenue,Campbell Reith Hill LLP,0
South Ribble Borough Council,http://statistics.data.gov.uk/id/local-authority/30UE,Central Support Services,Materials General,4040,1000L Midland � Varpress Hydraulic 46 IBC 1.25 per litre,31/01/2024,0000495513,1250,Revenue,CGN Limited,0
South Ribble Borough Council,http://statistics.data.gov.uk/id/local-authority/30UE,Capital,Acquisition costs,C130,ADDRESS REDACTED,03/01/2024,0000494844,15000,Revenue,Chadwick Lawrence Solicitors LLP,0
South Ribble Borough Council,http://statistics.data.gov.uk/id/local-authority/30UE,Central Support Services,External Contractors Charges,4570,Waste collection from Buckshaw Village 2023/24,17/01/2024,0000494710,44896,Revenue,CHORLEY BOROUGH COUNCIL,0
South Ribble Borough Council,http://statistics.data.gov.uk/id/local-authority/30UE,General Grants Bequests & Dona,Contributions to Other Bodies,4730,"Year 4 2023 / 2024 Grant provision for advice services as per grant agreement., , 50,000",31/01/2024,0000495150,25000,Revenue,Citizens Advice Lancashire,0
South Ribble Borough Council,http://statistics.data.gov.uk/id/local-authority/30UE,Central Support Services,Operational Equip & Tools,4010,PADLOCKS - SQUIRE 660 TO PASS KEY 10,10/01/2024,0000495074,880,Revenue,COLLINS & SONS,0
South Ribble Borough Council,http://statistics.data.gov.uk/id/local-authority/30UE,Community Development,Core Fund,4861,Winter Warmth Grant,24/01/2024,0000495467,500,Revenue,Community Network and Outreach,0
South Ribble Borough Council,http://statistics.data.gov.uk/id/local-authority/30UE,Central Support Services,Purchase of Bins,4043,"BLUE 240 WHEELIE BINS 270 X 19.20, GREY 240 WHEELIE BINS 270 X 19.20",24/01/2024,0000495493,10368,Revenue,Contenur UK Ltd,0
South Ribble Borough Council,http://statistics.data.gov.uk/id/local-authority/30UE,Capital,Capital Grant,C570,"DFG WORK FOR ADAPTATION FOR RAMP WORKS AT ADDRESS REDACTED AS PER SRBC PLANS AND QUOTE SUPPLIED OF 12685.98, TOTAL",31/01/2024,0000495174,14148.98,Revenue,Cornerstone Building & Maintenance Ltd,0
South Ribble Borough Council,http://statistics.data.gov.uk/id/local-authority/30UE,Recreation & Sport,Telephones-Rental,4261,,03/01/2024,0000495096,533.68,Revenue,Daisy Communications LTD,0
South Ribble Borough Council,http://statistics.data.gov.uk/id/local-authority/30UE,Recreation & Sport,Telephones-Rental,4261,,03/01/2024,0000495097,533.68,Revenue,Daisy Communications LTD,0
South Ribble Borough Council,http://statistics.data.gov.uk/id/local-authority/30UE,Community Development,Miscellaneous Expenses,4851,0,31/01/2024,0000495578,625,Revenue,Danielle Mensah,0
South Ribble Borough Council,http://statistics.data.gov.uk/id/local-authority/30UE,Community Development,Miscellaneous Expenses,4851,0,31/01/2024,0000495592,625,Revenue,Debbie Moore,0
South Ribble Borough Council,http://statistics.data.gov.uk/id/local-authority/30UE,Capital,Cap Contract Payment,C230,"As per your quote reference: Q24953-2, Option 2: OC97FDA C1+, Colour: Black, Quantity: 10 (Ten)",10/01/2024,0000493935,2753.1,Revenue,Diamond Business Interiors Ltd,0
South Ribble Borough Council,http://statistics.data.gov.uk/id/local-authority/30UE,Central Support Services,Planned Annual Repair & Maintenance,2021,"2 days High Performance Jet Vac Tanker to remove hazardous waste from the Quadraceptor and the two stage oil, separator near the ",10/01/2024,0000495055,1820,Revenue,DRAIN ALERT LTD,0
South Ribble Borough Council,http://statistics.data.gov.uk/id/local-authority/30UE,Central Support Services,Planned Annual Repair & Maintenance,2021,To also include an additional 2800.00 for the hazardous waste to be removed please. As per NAME REDACTED request as part of PPM programm,10/01/2024,0000495055,2385.96,Revenue,DRAIN ALERT LTD,0
South Ribble Borough Council,http://statistics.data.gov.uk/id/local-authority/30UE,Housing Benefit Administration,Miscellaneous Expenses,4851,HB REBATE RECOVERY OF OVERPAYMENTS RE HBAA,24/01/2024,0000495517,2135.05,Revenue,DWP,0
South Ribble Borough Council,http://statistics.data.gov.uk/id/local-authority/30UE,Recreation & Sport,Electricity,2303,Feeder pillar sports ground penwortham,24/01/2024,0000486913,960.99,Revenue,E On   A-3059D946,0
South Ribble Borough Council,http://statistics.data.gov.uk/id/local-authority/30UE,Recreation & Sport,Electricity,2303,1/3 to 31/3/23,24/01/2024,0000488198,1043.19,Revenue,E On   A-3059D946,0
South Ribble Borough Council,http://statistics.data.gov.uk/id/local-authority/30UE,Surplus or Deficit on Trading,Electricity,2303,,24/01/2024,0000494728,690.36,Revenue,E On   A-3059D946,0
South Ribble Borough Council,http://statistics.data.gov.uk/id/local-authority/30UE,Surplus or Deficit on Trading,Electricity,2303,,24/01/2024,0000495327,1124.84,Revenue,E On   A-3059D946,0
South Ribble Borough Council,http://statistics.data.gov.uk/id/local-authority/30UE,Open Spaces,Commemorative Features,4019,", Evergreen cast iron framed seat, 1800mm long, with black Forest-Saver , recycled plastic slats. Cast iron frames finished in bl",31/01/2024,0000495026,746,Revenue,EARTH ANCHORS LTD,0
South Ribble Borough Council,http://statistics.data.gov.uk/id/local-authority/30UE,Community Development,Royalties,4854,0,31/01/2024,0000495601,1750,Revenue,Elisabeth Sawle,0
South Ribble Borough Council,http://statistics.data.gov.uk/id/local-authority/30UE,Central Support Services,Materials General,4040,"filter kit, 105 L gear box oil, VIN REDACTED, JFC 21162",24/01/2024,0000495523,1198.6,Revenue,F R SHARROCK LTD,0
South Ribble Borough Council,http://statistics.data.gov.uk/id/local-authority/30UE,Central Support Services,Materials General,4040,"2x sensors, VIN REDACTED, JFC20700",17/01/2024,0000494474,769.7,Revenue,Faun Zoeller (UK) Ltd,0
South Ribble Borough Council,http://statistics.data.gov.uk/id/local-authority/30UE,Open Spaces,Plants Trees & Shrubs,4046,"As per ref 104., , Delivery of food and drink associated with Royal Visit to Worden Hall on 24th November., , 821.50",10/01/2024,0000494511,821.5,Revenue,Folly Coffee House,0
South Ribble Borough Council,http://statistics.data.gov.uk/id/local-authority/30UE,Central Support Services,Legal,4821,"Employment law fees relating to NAME REDACTED (SR Leisure), Invoice no: 635970",17/01/2024,0000495360,715.5,Revenue,Forbes Solicitors Office,0
South Ribble Borough Council,http://statistics.data.gov.uk/id/local-authority/30UE,Open Spaces,GM Refurbishment,4657,Supply and install a new Ability Whirl roundabout top section(remove existing top from site) at Withy Grove Playground � Quote re,03/01/2024,0000495016,8875,Revenue,G L JONES PLAYGROUNDS LTD,0
South Ribble Borough Council,http://statistics.data.gov.uk/id/local-authority/30UE,Recreation & Sport,Publicity & Promotion,4842,"Various sports kit, ref NAME REDACTED - Email 07/11/23, Total inc delivery = 1,255.96 ex vat, Invoice QU5479",24/01/2024,0000495440,1255.96,Revenue,Galaxy,0
South Ribble Borough Council,http://statistics.data.gov.uk/id/local-authority/30UE,Central Support Services,Materials General,4040,2 x Cylinder Yoke Composite 5021824 @ 843.38 BIN G038,24/01/2024,0000494380,843.38,Revenue,GEESINK NORBA LTD,0
South Ribble Borough Council,http://statistics.data.gov.uk/id/local-authority/30UE,Central Support Services,Materials General,4040,"4x bearings for yoke pivot pins, 2x yoke pivot pin, 2x Pin yoke Cylinder, 2x Composite bearing for yoke ram, , VIN REDACTED, JFC 21088",03/01/2024,0000494802,1234.42,Revenue,GEESINK NORBA LTD,0
South Ribble Borough Council,http://statistics.data.gov.uk/id/local-authority/30UE,Central Support Services,Materials General,4040,3x GO29 HP Filter switch indicator C/W cable,10/01/2024,0000495071,660.9,Revenue,GEESINK NORBA LTD,0
South Ribble Borough Council,http://statistics.data.gov.uk/id/local-authority/30UE,Central Support Services,Materials General,4040,2 x Cylinder Yoke Composite 5021824 @ 843.38 BIN G038,24/01/2024,0000495109,843.38,Revenue,GEESINK NORBA LTD,0
South Ribble Borough Council,http://statistics.data.gov.uk/id/local-authority/30UE,Central Support Services,Materials General,4040,"4x Bushes - Bin G003, 4x Buffers - Bin G006, 2x Pin - Bin G056, 2x Clamp Switch - Bin G010, 3x Plant Cleavers - Bin G010, 3x High",24/01/2024,0000495439,684.78,Revenue,GEESINK NORBA LTD,0
South Ribble Borough Council,http://statistics.data.gov.uk/id/local-authority/30UE,Central Support Services,Materials General,4040,"1x button station wiring loom, VIN REDACTED, JFC20948",24/01/2024,0000495444,503.92,Revenue,GEESINK NORBA LTD,0
South Ribble Borough Council,http://statistics.data.gov.uk/id/local-authority/30UE,Central Support Services,Legal,4821,Central Lancashire Local Plan-Fees relating to Giles Cannock,10/01/2024,0000495187,1750,Revenue,Giles Cannock,0
South Ribble Borough Council,http://statistics.data.gov.uk/id/local-authority/30UE,Open Spaces,Commemorative Features,4019,"2x Phoenix� Recycled Material Seat, Supplied with black seat ends, black enviropol slats and no ground fixings.",31/01/2024,0000495241,1170,Revenue,GLASDON UK LTD,0
South Ribble Borough Council,http://statistics.data.gov.uk/id/local-authority/30UE,Housing Advice,Contributions to Other Bodies,4730,AFFORDABLE WARMTH SCHEME FOR GAS BOILER REPLACEMENT AT ADDRESS REDACTED AS PER THE QUOTE SUPPLIED OF 2113.43 ( ,10/01/2024,0000495037,1761.19,Revenue,GOS Heating Ltd,0
South Ribble Borough Council,http://statistics.data.gov.uk/id/local-authority/30UE,Housing Advice,Contributions to Other Bodies,4730,AFFORDABLE WARMTH SCHEME FOR CENTRAL HEATING SYSTEM AT ADDRESS REDACTED AS PER THE QUOTE SUPPLIED OF 3492,17/01/2024,0000495237,3606.59,Revenue,GOS Heating Ltd,0
South Ribble Borough Council,http://statistics.data.gov.uk/id/local-authority/30UE,Housing Advice,Contributions to Other Bodies,4730,AFFORDABLE WARMTH SCHEME FOR BOILER AND HEATING WORKS AT ADDRESS REDACTED ER QUOTE SUPPLIED OF 1913.15 ,24/01/2024,0000495394,1822.05,Revenue,GOS Heating Ltd,0
South Ribble Borough Council,http://statistics.data.gov.uk/id/local-authority/30UE,Housing Advice,Contributions to Other Bodies,4730,AFFORDABLE WARMTH SCHEME FOR BOILER AND HEATING WORKS AT ADDRESS REDACTED PER QUOTE SUPPLIED OF 1628.30 INC VAT,24/01/2024,0000495395,1550.76,Revenue,GOS Heating Ltd,0
South Ribble Borough Council,http://statistics.data.gov.uk/id/local-authority/30UE,Capital,Capital Grant,C570,"DFG WORK FOR LEVEL ACCESS SHOWER AT ADDRESS REDACTED AS PER SRBC PLANS AND QUOTE SUPPLIED OF 5094.34, TOTAL CO",24/01/2024,0000495549,5094.34,Revenue,GOS Heating Ltd,0
South Ribble Borough Council,http://statistics.data.gov.uk/id/local-authority/30UE,Central Support Services,Materials General,4040,GRAFFITI REMOVER TRANSGEL (5 LITRE),31/01/2024,0000495427,538.75,Revenue,Graffiti Removal Ltd,0
South Ribble Borough Council,http://statistics.data.gov.uk/id/local-authority/30UE,Central Support Services,Reactive Repair & Maintenance,2020,"Drainage works required at Hurst Grange, following recent inspection. No grease trap fitted causing major issues to the bio-disc ",24/01/2024,0000495405,5940.91,Revenue,H Clarke and Sons Ltd,0
South Ribble Borough Council,http://statistics.data.gov.uk/id/local-authority/30UE,Community Development,Core Fund,4861,"Hub support for Higher Walton Bowling Club from Bamber Bridge, Walton Le Dale and Eastern Parishes Community Hub",24/01/2024,0000495436,513,Revenue,HIGHER WALTON BOWLING CLUB,0
South Ribble Borough Council,http://statistics.data.gov.uk/id/local-authority/30UE,Short Term Creditors,Amount Received,0140,,10/01/2024,0000494633,1495.31,Revenue,HM REVENUE & CUSTOMS,0
South Ribble Borough Council,http://statistics.data.gov.uk/id/local-authority/30UE,Short Term Creditors,Amount Received,0140,,10/01/2024,0000494759,1995,Revenue,HM REVENUE & CUSTOMS,0
South Ribble Borough Council,http://statistics.data.gov.uk/id/local-authority/30UE,Short Term Creditors,Amount Received,0140,,10/01/2024,0000495019,1067,Revenue,HM REVENUE & CUSTOMS,0
South Ribble Borough Council,http://statistics.data.gov.uk/id/local-authority/30UE,Short Term Creditors,Amount Paid,0030,HMRC Income Tax - Dec 23 Deductions from Payroll,17/01/2024,0000495371,116586.1,Revenue,HM REVENUE & CUSTOMS 065PV00107808,0
South Ribble Borough Council,http://statistics.data.gov.uk/id/local-authority/30UE,Unapportionable Central OHeads,Apprentice Levy,1111,HMRC App Levy - Dec 23 Deductions from Payroll,17/01/2024,0000495372,4069,Revenue,HM REVENUE & CUSTOMS 065PV00107808,0
South Ribble Borough Council,http://statistics.data.gov.uk/id/local-authority/30UE,Short Term Creditors,Amount Paid,0030,HMRC NI EE's - Dec 23 Deductions from Payroll,17/01/2024,0000495373,70638.31,Revenue,HM REVENUE & CUSTOMS 065PV00107808,0
South Ribble Borough Council,http://statistics.data.gov.uk/id/local-authority/30UE,Short Term Creditors,Amount Paid,0030,HMRC NI ER's - Dec 23 Deductions from Payroll,17/01/2024,0000495374,97860.29,Revenue,HM REVENUE & CUSTOMS 065PV00107808,0
South Ribble Borough Council,http://statistics.data.gov.uk/id/local-authority/30UE,Short Term Creditors,Amount Paid,0030,HMRC Student Loans - Dec 23 Deductions from Payroll,17/01/2024,0000495376,4590,Revenue,HM REVENUE & CUSTOMS 065PV00107808,0
South Ribble Borough Council,http://statistics.data.gov.uk/id/local-authority/30UE,Capital,Consultancy,C259,Project Management/ Contract Administration Services (Stages 5-7) for the delivery of Jubilee Gardens Extra Care Facility at West,17/01/2024,0000494606,4025,Revenue,Identity Consult Ltd,0
South Ribble Borough Council,http://statistics.data.gov.uk/id/local-authority/30UE,Capital,Consultancy,C259,Project Management/ Contract Administration Services (Stages 5-7) for the delivery of Jubilee Gardens Extra Care Facility at West,17/01/2024,0000495117,4025,Revenue,Identity Consult Ltd,0
South Ribble Borough Council,http://statistics.data.gov.uk/id/local-authority/30UE,Central Support Services,IT Consumables,413A,half day consultancy,10/01/2024,0000494890,600,Revenue,IDOX PLC,0
South Ribble Borough Council,http://statistics.data.gov.uk/id/local-authority/30UE,Central Support Services,Franked Post,4292,Imail hybrid standard mono letter,03/01/2024,0000494775,1003.52,Revenue,Imail Comms Limited,0
South Ribble Borough Council,http://statistics.data.gov.uk/id/local-authority/30UE,Central Support Services,Franked Post,4292,Imail hybrid standard mono letter,03/01/2024,0000494776,810.58,Revenue,Imail Comms Limited,0
South Ribble Borough Council,http://statistics.data.gov.uk/id/local-authority/30UE,Central Support Services,Franked Post,4292,Imail hybrid standard mono letter,03/01/2024,0000494777,637.17,Revenue,Imail Comms Limited,0
South Ribble Borough Council,http://statistics.data.gov.uk/id/local-authority/30UE,Central Support Services,Franked Post,4292,Imail hybrid standard mono letter,03/01/2024,0000494778,500.44,Revenue,Imail Comms Limited,0
South Ribble Borough Council,http://statistics.data.gov.uk/id/local-authority/30UE,Central Support Services,Franked Post,4292,Imail hybrid standard mono letter,03/01/2024,0000494780,1315.61,Revenue,Imail Comms Limited,0
South Ribble Borough Council,http://statistics.data.gov.uk/id/local-authority/30UE,Central Support Services,Franked Post,4292,Imail hybrid standard mono letter,03/01/2024,0000494781,840.56,Revenue,Imail Comms Limited,0
South Ribble Borough Council,http://statistics.data.gov.uk/id/local-authority/30UE,Central Support Services,Franked Post,4292,Imail hybrid standard mono letter,03/01/2024,0000494782,789.64,Revenue,Imail Comms Limited,0
South Ribble Borough Council,http://statistics.data.gov.uk/id/local-authority/30UE,Central Support Services,Franked Post,4292,Imail hybrid standard mono letter,03/01/2024,0000494783,1367.72,Revenue,Imail Comms Limited,0
South Ribble Borough Council,http://statistics.data.gov.uk/id/local-authority/30UE,Central Support Services,Franked Post,4292,Imail hybrid standard mono letter,03/01/2024,0000494784,859.2,Revenue,Imail Comms Limited,0
South Ribble Borough Council,http://statistics.data.gov.uk/id/local-authority/30UE,Central Support Services,Franked Post,4292,Imail hybrid standard mono letter,03/01/2024,0000494788,622.89,Revenue,Imail Comms Limited,0
South Ribble Borough Council,http://statistics.data.gov.uk/id/local-authority/30UE,Central Support Services,Franked Post,4292,"Imail hybrid standard mono letter, March 23 including year ens",03/01/2024,0000494790,31554.23,Revenue,Imail Comms Limited,0
South Ribble Borough Council,http://statistics.data.gov.uk/id/local-authority/30UE,Central Support Services,Franked Post,4292,Imail hybrid standard mono letter,03/01/2024,0000494791,762.72,Revenue,Imail Comms Limited,0
South Ribble Borough Council,http://statistics.data.gov.uk/id/local-authority/30UE,Central Support Services,Franked Post,4292,Imail hybrid standard mono letter,03/01/2024,0000494792,805.17,Revenue,Imail Comms Limited,0
South Ribble Borough Council,http://statistics.data.gov.uk/id/local-authority/30UE,Central Support Services,Franked Post,4292,Imail hybrid standard mono letter,03/01/2024,0000494793,1269.97,Revenue,Imail Comms Limited,0
South Ribble Borough Council,http://statistics.data.gov.uk/id/local-authority/30UE,Central Support Services,Franked Post,4292,Imail hybrid standard mono letter,03/01/2024,0000494794,693.89,Revenue,Imail Comms Limited,0
South Ribble Borough Council,http://statistics.data.gov.uk/id/local-authority/30UE,Central Support Services,Franked Post,4292,Imail hybrid standard mono letter,03/01/2024,0000494804,7725.05,Revenue,Imail Comms Limited,0
South Ribble Borough Council,http://statistics.data.gov.uk/id/local-authority/30UE,Central Support Services,Franked Post,4292,Imail hybrid standard mono letter,10/01/2024,0000495033,899.58,Revenue,Imail Comms Limited,0
South Ribble Borough Council,http://statistics.data.gov.uk/id/local-authority/30UE,Central Support Services,Franked Post,4292,Imail hybrid standard mono letter,10/01/2024,0000495190,850.39,Revenue,Imail Comms Limited,0
South Ribble Borough Council,http://statistics.data.gov.uk/id/local-authority/30UE,Central Support Services,Franked Post,4292,Imail hybrid standard mono letter,31/01/2024,0000495301,1378.62,Revenue,Imail Comms Limited,0
South Ribble Borough Council,http://statistics.data.gov.uk/id/local-authority/30UE,Central Support Services,Franked Post,4292,Imail hybrid standard mono letter,31/01/2024,0000495535,881.19,Revenue,Imail Comms Limited,0
South Ribble Borough Council,http://statistics.data.gov.uk/id/local-authority/30UE,Capital,Capital Grant,C570,"DFG WORK FOR SPECIALIST TOILET IN NEW ADAPTATION AT ADDRESS REDACTED AS PER OT SPEC AND QUOTE OF 4745.76, TOTAL COST �",10/01/2024,0000495172,4745.76,Revenue,Independent Adaptations Ltd,0
South Ribble Borough Council,http://statistics.data.gov.uk/id/local-authority/30UE,Central Support Services,Materials General,4040,QC10 - QUICK SET CONCRETE-QC10,10/01/2024,0000495106,1367.52,Revenue,INSTARMAC GROUP PLC,0
South Ribble Borough Council,http://statistics.data.gov.uk/id/local-authority/30UE,Waste Collection,Hiring Expenses,3212,Replace and paint rear shutter as required VIN REDACTED,17/01/2024,0000495086,1998.45,Revenue,Intack Self Drive Ltd,0
South Ribble Borough Council,http://statistics.data.gov.uk/id/local-authority/30UE,Central Support Services,Hiring Expenses,3212,Continued hire of VIN REDACTED 01/10/2023 - 31/10/2023,17/01/2024,0000495249,962.22,Revenue,Intack Self Drive Ltd,0
South Ribble Borough Council,http://statistics.data.gov.uk/id/local-authority/30UE,Central Support Services,Hiring Expenses,3212,Continued hire of VIN REDACTED 01/12/2023 - 31/12/2023,17/01/2024,0000495302,962.22,Revenue,Intack Self Drive Ltd,0
South Ribble Borough Council,http://statistics.data.gov.uk/id/local-authority/30UE,Community Development,Miscellaneous Expenses,4851,0,31/01/2024,0000495587,625,Revenue,Jemma Naish,0
South Ribble Borough Council,http://statistics.data.gov.uk/id/local-authority/30UE,Community Safety Services,Publicity & Promotion,4842,DHR Chair and Author DHR1 2022,03/01/2024,0000495025,6390,Revenue,JOHN DOYLE,0
South Ribble Borough Council,http://statistics.data.gov.uk/id/local-authority/30UE,Community Development,Miscellaneous Expenses,4851,0,31/01/2024,0000495598,625,Revenue,John House,0
South Ribble Borough Council,http://statistics.data.gov.uk/id/local-authority/30UE,Capital,Cap Contract Payment,C230,Construction of the Pot house bas walls as per NAME REDACTED,31/01/2024,0000494948,7000,Revenue,John Wade Groundworks Ltd t/a Wade Group,0
South Ribble Borough Council,http://statistics.data.gov.uk/id/local-authority/30UE,Capital,Cap Contract Payment,C230,Supply and tip 17 tonne stone to walled garden,31/01/2024,0000495701,756,Revenue,John Wade Groundworks Ltd t/a Wade Group,0
South Ribble Borough Council,http://statistics.data.gov.uk/id/local-authority/30UE,Open Spaces,Hiring Expenses,3212,", Hire of 19m Tracked MEWP, 13th  17th November 2023",17/01/2024,0000495248,1200,Revenue,K H HIRE SERVICES,0
South Ribble Borough Council,http://statistics.data.gov.uk/id/local-authority/30UE,Community Development,Miscellaneous Expenses,4851,0,31/01/2024,0000495593,625,Revenue,Keith Rutherford,0
South Ribble Borough Council,http://statistics.data.gov.uk/id/local-authority/30UE,Surplus or Deficit on Trading,Electricity,2303,elec,31/01/2024,0000495607,890.57,Revenue,Kinex,0
South Ribble Borough Council,http://statistics.data.gov.uk/id/local-authority/30UE,Open Spaces,GM Refurbishment,4657,Supply and install 50mm black wetpour pads for Junior and Toddler swings at Hutton playground-27m2,10/01/2024,0000495080,4005.17,Revenue,KOMPAN LTD,0
South Ribble Borough Council,http://statistics.data.gov.uk/id/local-authority/30UE,Capital,Cap Contract Payment,C230,"Design and Build of New Toddler and Junior Playground on Hutton Playing Field, Hutton.",24/01/2024,0000495234,92625,Revenue,KOMPAN LTD,0
South Ribble Borough Council,http://statistics.data.gov.uk/id/local-authority/30UE,Surplus or Deficit on Trading,Rents,2401,"Payment of quarterly rental charge at Forward Industrial Estate, L2 Property Limited for 2023/2024Quarter 4",10/01/2024,0000495128,16147.5,Revenue,L2 Property Limited,0
South Ribble Borough Council,http://statistics.data.gov.uk/id/local-authority/30UE,Cash and Cash Equivalents,Amount Paid,0030,donation,10/01/2024,0000494756,2000,Revenue,Lancashire Mind Limited,0
South Ribble Borough Council,http://statistics.data.gov.uk/id/local-authority/30UE,Waste Collection,Clinical Waste Disposal,5112,October 2023 - Incineration of clinical waste.,31/01/2024,0000495700,618.93,Revenue,LANCASHIRE TEACHING FT,0
South Ribble Borough Council,http://statistics.data.gov.uk/id/local-authority/30UE,Capital,Cap Contract Payment,C230,Supply and install the street lighting as per the design,03/01/2024,0000494040,12975,Revenue,LANCS COUNTY COUNCIL,0
South Ribble Borough Council,http://statistics.data.gov.uk/id/local-authority/30UE,Local Land Charges,L C C General,4530,Land Charges - November 2023,17/01/2024,0000495251,710,Revenue,LANCS COUNTY COUNCIL,0
South Ribble Borough Council,http://statistics.data.gov.uk/id/local-authority/30UE,Central Support Services,Materials General,4040,"gear pad selector WIP 61550, VIN REDACTED, JFC 21136",10/01/2024,0000495023,783.21,Revenue,LANCS DAF,0
South Ribble Borough Council,http://statistics.data.gov.uk/id/local-authority/30UE,Central Support Services,Materials General,4040,"brake chamber, mirror back, VIN REDACTED, JFC 21110",10/01/2024,0000495049,530.53,Revenue,LANCS DAF,0
South Ribble Borough Council,http://statistics.data.gov.uk/id/local-authority/30UE,Central Support Services,Materials General,4040,"sensor , 2 x pipes, VIN REDACTED, JFC 21181",17/01/2024,0000495305,701.78,Revenue,LANCS DAF,0
South Ribble Borough Council,http://statistics.data.gov.uk/id/local-authority/30UE,Central Support Services,Materials General,4040,"Set of filter kits, spring break chamber, rear brake pads, 2 x drain taps, VIN REDACTED, JFC 21186",24/01/2024,0000495306,1245.34,Revenue,LANCS DAF,0
South Ribble Borough Council,http://statistics.data.gov.uk/id/local-authority/30UE,Central Support Services,Materials General,4040,"BIN 343- Long U bolt x3, BIN 344- Short U Bolt x 3",24/01/2024,0000495420,849,Revenue,LANCS DAF,0
South Ribble Borough Council,http://statistics.data.gov.uk/id/local-authority/30UE,Central Support Services,Materials General,4040,see credit 3004255,24/01/2024,0000495539,508,Revenue,LANCS DAF,0
South Ribble Borough Council,http://statistics.data.gov.uk/id/local-authority/30UE,Central Support Services,Materials General,4040,"Rear brake valve, VIN REDACTED, JFC 21261",31/01/2024,0000495640,1227.49,Revenue,LANCS DAF,0
South Ribble Borough Council,http://statistics.data.gov.uk/id/local-authority/30UE,Central Support Services,Materials General,4040,bin 541 brake pads x 3,31/01/2024,0000495642,555,Revenue,LANCS DAF,0
South Ribble Borough Council,http://statistics.data.gov.uk/id/local-authority/30UE,Capital,Cap Contract Payment,C230,"Path Repairs & Improvements, Worden Park, Additional Works, Surface Dressing & Hall Car Park Resurfacing",17/01/2024,0000495038,975,Revenue,LANDSCAPE ENGINEERING LIMITED,0
South Ribble Borough Council,http://statistics.data.gov.uk/id/local-authority/30UE,Capital,Cap Contract Payment,C230,"Path Repairs & Improvements, Worden Park, Additional Works, Surface Dressing & Hall Car Park Resurfacing",17/01/2024,0000495038,23000,Revenue,LANDSCAPE ENGINEERING LIMITED,0
South Ribble Borough Council,http://statistics.data.gov.uk/id/local-authority/30UE,Community Development,Core Fund,4861,Winter Warmth Grant,24/01/2024,0000495466,500,Revenue,LEYLAND BAPTIST CHURCH,0
South Ribble Borough Council,http://statistics.data.gov.uk/id/local-authority/30UE,Community Development,Miscellaneous Expenses,4851,To provide for a function on 22nd December - the Ukranian Christmas Party - room hire and catering as discussed and agreed with ,24/01/2024,0000495308,1042.5,Revenue,Leyland Fox Lane and Sports and Social Club,0
South Ribble Borough Council,http://statistics.data.gov.uk/id/local-authority/30UE,Open Spaces,Miscellaneous Expenses,4851,"Manufacture and install, Bespoke field gate, fully galvanised. As agreed with NAME REDACTED and NAME REDACTED on site at Penwortham Mill Reservoir",10/01/2024,0000495047,560,Revenue,Leyland Lane Wrought Iron Gates & Railings,0
South Ribble Borough Council,http://statistics.data.gov.uk/id/local-authority/30UE,Open Spaces,Materials General,4040,x20 sleeves Galvanizing out of 110 mm pipe work,31/01/2024,0000495728,638,Revenue,Leyland Lane Wrought Iron Gates & Railings,0
South Ribble Borough Council,http://statistics.data.gov.uk/id/local-authority/30UE,Community Development,Core Fund,4861,Winter Warmth Grant,24/01/2024,0000495468,500,Revenue,LEYLAND UNITED REFORMED CHURCH,0
South Ribble Borough Council,http://statistics.data.gov.uk/id/local-authority/30UE,Surplus or Deficit on Trading,Planned Annual Repair & Maintenance,2021,"To supply and fit new UPVC anthracite on white frames. Bottom openers, Trickle vents, Toughened glass, restrictor hinges, silver ",10/01/2024,0000495046,1084.12,Revenue,M&D Bibby Double Glazing Limited,0
South Ribble Borough Council,http://statistics.data.gov.uk/id/local-authority/30UE,Capital,Capital Grant,C570,DFG WORKS FOR LEVEL ACCESS BATHROOM AT ADDRESS REDACTED NEW PROGRESS PROPERTY SO 50% OF TOTAL QUOTE TO BE PA,10/01/2024,0000495169,2418.39,Revenue,MAHONEY CONTRACTORS LTD,0
South Ribble Borough Council,http://statistics.data.gov.uk/id/local-authority/30UE,Capital,Capital Grant,C570,DFG WORKS FOR RAMP ACCESS FRONG AND REAR AT ADDRESS REDACTED - NEW PROGRESS PROPERTY SO 50% OF TOTAL QUOTE TO BE PAI,24/01/2024,0000495456,2848.21,Revenue,MAHONEY CONTRACTORS LTD,0
South Ribble Borough Council,http://statistics.data.gov.uk/id/local-authority/30UE,Capital,Capital Grant,C570,DFG WORKS FOR DOOR AND ASSOCIATED WORKS FOR DOOR OPENING SYSTEM AT ADDRESS REDACTED. NEW PROGRESS PROPERTY BUT EQUIPMENT O,24/01/2024,0000495546,3148.24,Revenue,MAHONEY CONTRACTORS LTD,0
South Ribble Borough Council,http://statistics.data.gov.uk/id/local-authority/30UE,Capital,Capital Grant,C570,DFG WORKS FOR LEVEL ACCESS BATHROOM AT ADDRESS REDACTED NEW PROGRESS PROPERTY SO 50% OF TOTAL QUOTE TO BE PAID TOTAL,24/01/2024,0000495547,2841.12,Revenue,MAHONEY CONTRACTORS LTD,0
South Ribble Borough Council,http://statistics.data.gov.uk/id/local-authority/30UE,Central Support Services,Short Course,1402,"20 HOUR CAT C COURSE (INCLUDING TESTS) 1655.00, MODULE 4 CPC (PRACTICAL PART OF INITIAL CPC , ALREADY TAKEN THEORY 299.00",31/01/2024,0000495736,1250,Revenue,Meg Training Solutions Ltd,0
South Ribble Borough Council,http://statistics.data.gov.uk/id/local-authority/30UE,Suspended Items,Agency Staff,1121,Appointment of (NAME REDACTED) Procurement Officer for 6 months. 22.08.2023  21.0.2.2024,03/01/2024,0000495039,2375,Revenue,Michael Page International Recruitment Limited,0
South Ribble Borough Council,http://statistics.data.gov.uk/id/local-authority/30UE,Suspended Items,Agency Staff,1121,Appointment of (NAME REDACTED) Procurement Officer for 6 months. 22.08.2023  21.0.2.2024,10/01/2024,0000495143,2375,Revenue,Michael Page International Recruitment Limited,0
South Ribble Borough Council,http://statistics.data.gov.uk/id/local-authority/30UE,Suspended Items,Agency Staff,1121,Appointment of (NAME REDACTED) Procurement Officer for 6 months. 22.08.2023  21.0.2.2024,24/01/2024,0000495401,1900,Revenue,Michael Page International Recruitment Limited,0
South Ribble Borough Council,http://statistics.data.gov.uk/id/local-authority/30UE,Elections,Polling Centre Costs,4421,"Provision of Modern Polling, at upcoming General Election, before January 2025",17/01/2024,0000495390,10275,Revenue,Modern Democracy Limited,0
South Ribble Borough Council,http://statistics.data.gov.uk/id/local-authority/30UE,Housing Advice,External Contractors Charges,4570,DFG WORK USING HSF FUNDING FOR ADAPTATION FOR A LEVEL ACCESS SHOWER AT ADDRESS REDACTED AS PER SRBC PLANS AND QUOTE SUPPL,24/01/2024,0000495451,3405,Revenue,MSG Building and Construction Ltd,0
South Ribble Borough Council,http://statistics.data.gov.uk/id/local-authority/30UE,Capital,Capital Grant,C570,DFG WORK FOR ADAPTATION FOR STAIRLIFT EQUIPMENT AT ADDRESS REDACTED AS PER SRBC PLANS AND QUOTE SUPPLIED OF 8190.00,10/01/2024,0000495148,8190,Revenue,MULTICARE MOBILITY PRODUCTS LTD,0
South Ribble Borough Council,http://statistics.data.gov.uk/id/local-authority/30UE,Community Development,Miscellaneous Expenses,4851,0,31/01/2024,0000495594,625,Revenue,Muriel Laws,0
South Ribble Borough Council,http://statistics.data.gov.uk/id/local-authority/30UE,Homelessness,Temporary Accommodation,5311,I am raising a purchase order for Purple Roomz hotel in Bamber Bridge for homeless clients booked into the hotel between 16/12/20,31/01/2024,0000495548,14102.17,Revenue,National Hotel Rooms Ltd t/a Purple Roomz,0
South Ribble Borough Council,http://statistics.data.gov.uk/id/local-authority/30UE,Community Development,Temporary Accommodation,5311,I am raising a purchase order for Purple Roomz hotel in Bamber Bridge for homeless clients booked into the hotel between 16/12/20,31/01/2024,0000495548,6973.74,Revenue,National Hotel Rooms Ltd t/a Purple Roomz,0
South Ribble Borough Council,http://statistics.data.gov.uk/id/local-authority/30UE,Homelessness,Temporary Accommodation,5311,"NAME REDACTED family room from 02/01/2024 to 16/01/2024  860.94, NAME REDACTED family room from 02/01/2024 to 16/01/2024  860",31/01/2024,0000495647,10829.61,Revenue,National Hotel Rooms Ltd t/a Purple Roomz,0
South Ribble Borough Council,http://statistics.data.gov.uk/id/local-authority/30UE,Community Development,Temporary Accommodation,5311,"NAME REDACTED family room from 02/01/2024 to 16/01/2024  860.94, NAME REDACTED family room from 02/01/2024 to 16/01/2024  860",31/01/2024,0000495647,7427.26,Revenue,National Hotel Rooms Ltd t/a Purple Roomz,0
South Ribble Borough Council,http://statistics.data.gov.uk/id/local-authority/30UE,Parking Services,Parking Attendants,4514,"Variable Fee Car Park Enforcement , DECEMBER 2023 - Variable Recharge , Items",24/01/2024,0000495570,1895.2,Revenue,NSL LTD,0
South Ribble Borough Council,http://statistics.data.gov.uk/id/local-authority/30UE,Central Support Services,Planned Annual Repair & Maintenance,2021,To provide gritting of areas on plan as per NAME REDACTED 4th December 2023 until further notice - estimated 20 visits at 135.00 per v,24/01/2024,0000494878,945,Revenue,Nurture Landscapes Ltd,0
South Ribble Borough Council,http://statistics.data.gov.uk/id/local-authority/30UE,Recreation & Sport,Planned Annual Repair & Maintenance,2021,cancelled by credit CN-0358,17/01/2024,0000494458,9847.5,Revenue,Oakley Landscaping Ltd,0
South Ribble Borough Council,http://statistics.data.gov.uk/id/local-authority/30UE,Surplus or Deficit on Trading,Reactive Repair & Maintenance,2020,"Description , , Grounds maintenance duties to include the below as per NAME REDACTED request , , �Strim out any undergrowth , �Chai",03/01/2024,0000495024,576,Revenue,Oakley Landscaping Ltd,0
South Ribble Borough Council,http://statistics.data.gov.uk/id/local-authority/30UE,Central Support Services,Computer Software,4242,Web benefit calculator 2024/2025,31/01/2024,0000495698,715,Revenue,OTECH LTD,0
South Ribble Borough Council,http://statistics.data.gov.uk/id/local-authority/30UE,Corporate Management,College Course,1403,APM Project Fundamentals Qualifications and Project Management Qualification,31/01/2024,0000495147,1224,Revenue,OXFORD PROFESSIONAL EDUCATIONGROUP,0
South Ribble Borough Council,http://statistics.data.gov.uk/id/local-authority/30UE,Economic Development,Reactive Repair & Maintenance,2020,Heras Fencing for Leyland Market.,17/01/2024,0000495317,720,Revenue,PDP PROPERTY SERVICES LTD,0
South Ribble Borough Council,http://statistics.data.gov.uk/id/local-authority/30UE,Capital,Cap Contract Payment,C230,Supply and Installation of New Perimeter Security Fencing to the rear at Bamber Bridge LC as per NAME REDACTED request,31/01/2024,0000495724,35979.51,Revenue,PEERLESS FENCING LTD,0
South Ribble Borough Council,http://statistics.data.gov.uk/id/local-authority/30UE,Central Support Services,Occupational Health,1408,Flu Vouchers for SRBC,17/01/2024,0000495045,900,Revenue,People Asset Management,0
South Ribble Borough Council,http://statistics.data.gov.uk/id/local-authority/30UE,Community Development,Miscellaneous Expenses,4851,0,31/01/2024,0000495581,625,Revenue,Peter Goulding,0
South Ribble Borough Council,http://statistics.data.gov.uk/id/local-authority/30UE,Central Support Services,IT Consumables,413A,autocad licenses,31/01/2024,0000495705,3987.39,Revenue,PHOENIX SOFTWARE LTD,0
South Ribble Borough Council,http://statistics.data.gov.uk/id/local-authority/30UE,Community Safety Services,Publicity & Promotion,4842,Contribution for Domestic Abuse Services,03/01/2024,0000494523,9028,Revenue,POLICE & CRIME COMMISSIONER LANCS POLICE,0
South Ribble Borough Council,http://statistics.data.gov.uk/id/local-authority/30UE,Culture & Heritage,Professional Fees,4510,"6 brand new wayfinding signs, and 5 refurbished signs, 1 panel of contour cut frosted vinyl, 2x A1 correx signs, , And installati",10/01/2024,0000494502,1191.17,Revenue,Poppy Signs Ltd,0
South Ribble Borough Council,http://statistics.data.gov.uk/id/local-authority/30UE,Open Spaces,Plants Trees & Shrubs,4046,"Bronze etched/engraved plaque with white in fill, mounted on dark hardwood plaque for HRH visit to Worden hall",10/01/2024,0000494540,550,Revenue,Poppy Signs Ltd,0
South Ribble Borough Council,http://statistics.data.gov.uk/id/local-authority/30UE,Economic Development,Operational Equip & Tools,4010,Toilet provision for Leyland Light Switch on 2023,17/01/2024,0000495254,852,Revenue,Portable Toilet Company Ltd,0
South Ribble Borough Council,http://statistics.data.gov.uk/id/local-authority/30UE,Central Support Services,External Contractors Charges,4570,"Spec Repair, VIN REDACTED, JFC 20941",17/01/2024,0000495257,1201.36,Revenue,POWERTRAIN PRODUCTS LIMITED,0
South Ribble Borough Council,http://statistics.data.gov.uk/id/local-authority/30UE,Recreation & Sport,Reactive Repair & Maintenance,2020,Scaffold Weekly Inspections at Leyland Leisure centre as per NAME REDACTED request,17/01/2024,0000495351,600,Revenue,Preston Scaffolding NW Ltd.,0
South Ribble Borough Council,http://statistics.data.gov.uk/id/local-authority/30UE,Recreation & Sport,Reactive Repair & Maintenance,2020,"Weekly Scaffold Inspections within September 2023 at Leyland Leisure Centre., Instruction as per NAME REDACTED",24/01/2024,0000495449,600,Revenue,Preston Scaffolding NW Ltd.,0
South Ribble Borough Council,http://statistics.data.gov.uk/id/local-authority/30UE,Central Support Services,Agency Staff,1121,"NAME REDACTED- HGV Teschnician 40 hours @ 27.19ph , W/C 06.11.23",03/01/2024,0000494944,1046.82,Revenue,Proactive Personnel Limited,0
South Ribble Borough Council,http://statistics.data.gov.uk/id/local-authority/30UE,Open Spaces,GM Refurbishment,4657,Urbanix Stepper as per quotation ref. 2305.3836.,31/01/2024,0000493326,3531.53,Revenue,PROLUDIC LTD,0
South Ribble Borough Council,http://statistics.data.gov.uk/id/local-authority/30UE,Short Term Creditors,Amount Paid,0030,Prudential - Dec 23 Deductions from Payroll,17/01/2024,0000495369,850,Revenue,Prudential,0
South Ribble Borough Council,http://statistics.data.gov.uk/id/local-authority/30UE,Short Term Creditors,Amount Paid,0030,Prudential SS - Dec 23 Deductions from Payroll,17/01/2024,0000495370,6875.13,Revenue,Prudential,0
South Ribble Borough Council,http://statistics.data.gov.uk/id/local-authority/30UE,Central Support Services,Computer Maintenance,4211,Konetik monthly charge for 60 vehicles for 3 months from 21/11/23 (60 evolve subscriptions),17/01/2024,0000495252,900,Revenue,Quartix,0
South Ribble Borough Council,http://statistics.data.gov.uk/id/local-authority/30UE,Central Support Services,Computer Maintenance,4211,System rental and communications charge for 60 vehicles for 3 months from 01/01/2024,17/01/2024,0000495253,1170,Revenue,Quartix,0
South Ribble Borough Council,http://statistics.data.gov.uk/id/local-authority/30UE,Central Support Services,Computer Maintenance,4211,System rental and communications charge for 60 vehicles for 3 months from 01/10/2023,17/01/2024,0000495276,1170,Revenue,Quartix,0
South Ribble Borough Council,http://statistics.data.gov.uk/id/local-authority/30UE,Central Support Services,Computer Maintenance,4211,Konetik monthly charge for 60 vehicles for 3 months from 21/08/23,17/01/2024,0000495277,915,Revenue,Quartix,0
South Ribble Borough Council,http://statistics.data.gov.uk/id/local-authority/30UE,Open Spaces,Reactive Repair & Maintenance,2020,Dog Wash at Worden Park 2023/2024 550.00 x 4 visits,03/01/2024,0000495044,500,Revenue,RED ROSE BUILDING MAINTENANCE,0
South Ribble Borough Council,http://statistics.data.gov.uk/id/local-authority/30UE,Central Support Services,Reactive Repair & Maintenance,2020,"Attent Hurst grange coffee shop, Dig up surface water gulley which has been connected to the sewage treatment unit, this drain ne",03/01/2024,0000495053,600,Revenue,RED ROSE BUILDING MAINTENANCE,0
South Ribble Borough Council,http://statistics.data.gov.uk/id/local-authority/30UE,Recreation & Sport,Reactive Repair & Maintenance,2020,Carpark drainage Repair Works at Bamber Bridge Leisure Centre as per NAME REDACTED request,24/01/2024,0000495421,1350,Revenue,RED ROSE BUILDING MAINTENANCE,0
South Ribble Borough Council,http://statistics.data.gov.uk/id/local-authority/30UE,Recreation & Sport,Reactive Repair & Maintenance,2020,LABOUR,24/01/2024,0000495421,600,Revenue,RED ROSE BUILDING MAINTENANCE,0
South Ribble Borough Council,http://statistics.data.gov.uk/id/local-authority/30UE,Recreation & Sport,Planned Annual Repair & Maintenance,2021,"Footpath repairs, following fencing install Works at Bamber Bridge Leisure Centre as per NAME REDACTED request",24/01/2024,0000495422,600,Revenue,RED ROSE BUILDING MAINTENANCE,0
South Ribble Borough Council,http://statistics.data.gov.uk/id/local-authority/30UE,Tourism,Fuel Oil,2301,Please deliver 700 litres of kerosene to Worden Park PR5 1DJ - NAME REDACTED for access to be delivered asap may need 60 m hose and small ,24/01/2024,0000495426,594.8,Revenue,RIBBLE FUEL OILS,0
South Ribble Borough Council,http://statistics.data.gov.uk/id/local-authority/30UE,Community Development,Miscellaneous Expenses,4851,0,31/01/2024,0000495591,625,Revenue,Richard Lucas,0
South Ribble Borough Council,http://statistics.data.gov.uk/id/local-authority/30UE,Community Development,Miscellaneous Expenses,4851,0,31/01/2024,0000495586,625,Revenue,Richard Spalding,0
South Ribble Borough Council,http://statistics.data.gov.uk/id/local-authority/30UE,Central Support Services,Computer Equipment,4241,SRBC old printers CLICK CHARGES,10/01/2024,0000495098,3129.63,Revenue,RICOH (UK) LTD,0
South Ribble Borough Council,http://statistics.data.gov.uk/id/local-authority/30UE,Capital,Consultancy,C259,Principle Designer Services (RIBA 4-7) Jubilee Gardens Extra Care,10/01/2024,0000495115,544,Revenue,RJD Associates (NW) Limited,0
South Ribble Borough Council,http://statistics.data.gov.uk/id/local-authority/30UE,Central Support Services,Departmental Course Fees,1420,"Hybrid/EV Vehicle Repair Level 3 Training, Delegate - NAME REDACTED",31/01/2024,0000495560,785,Revenue,RMI SC Limited,0
South Ribble Borough Council,http://statistics.data.gov.uk/id/local-authority/30UE,Surplus or Deficit on Trading,Service Charge,485C,1/1 to 31/12/2024,03/01/2024,0000495099,843,Revenue,ROBERT PINKUS (MANAGEMENT SERVICES) LTD,0
South Ribble Borough Council,http://statistics.data.gov.uk/id/local-authority/30UE,Surplus or Deficit on Trading,Service Charge,485C,1/1 to 31/12/2024,03/01/2024,0000495100,843,Revenue,ROBERT PINKUS (MANAGEMENT SERVICES) LTD,0
South Ribble Borough Council,http://statistics.data.gov.uk/id/local-authority/30UE,Surplus or Deficit on Trading,Service Charge,485C,1/1 to 31/12/2024,03/01/2024,0000495101,843,Revenue,ROBERT PINKUS (MANAGEMENT SERVICES) LTD,0
South Ribble Borough Council,http://statistics.data.gov.uk/id/local-authority/30UE,Surplus or Deficit on Trading,Service Charge,485C,1/1 to 31/12/2024,03/01/2024,0000495102,843,Revenue,ROBERT PINKUS (MANAGEMENT SERVICES) LTD,0
South Ribble Borough Council,http://statistics.data.gov.uk/id/local-authority/30UE,Surplus or Deficit on Trading,Service Charge,485C,1/1 to 31/12/2024,10/01/2024,0000495125,843,Revenue,ROBERT PINKUS (MANAGEMENT SERVICES) LTD,0
South Ribble Borough Council,http://statistics.data.gov.uk/id/local-authority/30UE,Surplus or Deficit on Trading,Service Charge,485C,1/1 to 31/12/2024,10/01/2024,0000495126,843,Revenue,ROBERT PINKUS (MANAGEMENT SERVICES) LTD,0
South Ribble Borough Council,http://statistics.data.gov.uk/id/local-authority/30UE,Surplus or Deficit on Trading,Service Charge,485C,1/1 to 31/12/2024,10/01/2024,0000495127,843,Revenue,ROBERT PINKUS (MANAGEMENT SERVICES) LTD,0
South Ribble Borough Council,http://statistics.data.gov.uk/id/local-authority/30UE,Central Support Services,External Contractors Charges,4570,"Spec Repair, VIN REDACTED, JFC21088",24/01/2024,0000495411,5417,Revenue,RTS Muni,0
South Ribble Borough Council,http://statistics.data.gov.uk/id/local-authority/30UE,Central Support Services,External Contractors Charges,4570,"Spec repair- LOLER, VIN REDACTED, JFC 21234",31/01/2024,0000495652,511.74,Revenue,RTS Muni,0
South Ribble Borough Council,http://statistics.data.gov.uk/id/local-authority/30UE,Community Development,Miscellaneous Expenses,4851,0,31/01/2024,0000495579,625,Revenue,Salim Malek,0
South Ribble Borough Council,http://statistics.data.gov.uk/id/local-authority/30UE,Community Development,Miscellaneous Expenses,4851,0,31/01/2024,0000495584,625,Revenue,Sally McDonald,0
South Ribble Borough Council,http://statistics.data.gov.uk/id/local-authority/30UE,Community Development,Core Fund,4861,"Hub support for Samlesbury War Memorial Hall from Bamber Bridge, Walton Le Dale and Eastern Parishes Community Hub",24/01/2024,0000495437,760,Revenue,SAMLESBURY WAR MEMORIAL HALL,0
South Ribble Borough Council,http://statistics.data.gov.uk/id/local-authority/30UE,Surplus or Deficit on Trading,Electricity,2303,18/1 to 17/7/23,24/01/2024,0000495134,646.39,Revenue,Scottish Power,0
South Ribble Borough Council,http://statistics.data.gov.uk/id/local-authority/30UE,Homelessness,Temporary Accommodation,5311,"I am raising a purchase order to pay Secure FM the sum of 1,078.70., , Secure FM provide the security staff at Cotswold House in",31/01/2024,0000495688,898.92,Revenue,Secure FM,0
South Ribble Borough Council,http://statistics.data.gov.uk/id/local-authority/30UE,Regulatory Services,Contributions to Other Bodies,4730,"Sefton Council � Southport Eco Centre, Delivery of Clean Air Crew � payment 1 of 2",17/01/2024,0000495239,26622,Revenue,SEFTON M B COUNCIL,0
South Ribble Borough Council,http://statistics.data.gov.uk/id/local-authority/30UE,Short Term Creditors,Amount Paid,0030,Labour Councillors - Dec 23 Deductions from Payroll,17/01/2024,0000495367,1969.21,Revenue,SOUTH RIBBLE LABOUR PARTY LOCAL GOVERNM,0
South Ribble Borough Council,http://statistics.data.gov.uk/id/local-authority/30UE,Short Term Creditors,Amount Received,0140,income transfer,10/01/2024,0000495141,19072.53,Revenue,South Ribble Leisure Ltd,0
South Ribble Borough Council,http://statistics.data.gov.uk/id/local-authority/30UE,Community Development,Professional Fees,4510,To provide 50 passes at 10 each as discussed and agreed with NAME REDACTED for Mental Health Awareness event in November,24/01/2024,0000495352,500,Revenue,South Ribble Leisure Ltd,0
South Ribble Borough Council,http://statistics.data.gov.uk/id/local-authority/30UE,Recreation & Sport,Room Hire and Events,4630,"Venue Hire for Adult Healthy Weights and HAF - 2022/2023, Total = 2,040 ex vat",24/01/2024,0000495423,2040,Revenue,South Ribble Leisure Ltd,0
South Ribble Borough Council,http://statistics.data.gov.uk/id/local-authority/30UE,Capital,Cap Contract Payment,C230,Leisure Local funds - mixed and return to netball project support,10/01/2024,0000495180,4000,Revenue,South Ribble Netball Club,0
South Ribble Borough Council,http://statistics.data.gov.uk/id/local-authority/30UE,Central Support Services,External Contractors Charges,4570,Spec Repair VIN REDACTED JFC20122,17/01/2024,0000495165,4664.38,Revenue,Southfield RCV Services Limited,0
South Ribble Borough Council,http://statistics.data.gov.uk/id/local-authority/30UE,Community Development,Professional Fees,4510,To provide bereavement training as per your reference SINV3364.,17/01/2024,0000495320,2240,Revenue,ST CATHERINES HOSPICE (LANCASHIRE) LTD,0
South Ribble Borough Council,http://statistics.data.gov.uk/id/local-authority/30UE,Democratic Represent and  Mgnt,External Catering Charges,4575,"25th November 2023, 63 chicken, 17 Cheese and onion, 54 Steak and ale (2 with plain potatoes not garlic) @12.95 a head",10/01/2024,0000495159,1456.88,Revenue,St Catherines Social Enterprise Ltd,0
South Ribble Borough Council,http://statistics.data.gov.uk/id/local-authority/30UE,Community Development,Core Fund,4861,Towards the cost of St James` Church disabled toilets as discussed and agreed,10/01/2024,0000495225,500,Revenue,St James Church c/o Mr A Croft,0
South Ribble Borough Council,http://statistics.data.gov.uk/id/local-authority/30UE,Service Management & Support,Diesel Fuel,3132,"17000 Ltrs Diesel @ 115.47ppl into the , feeder tank at Unit 81 Bison Place, Moss , Side key for cabinet is available from the , ",10/01/2024,0000495118,15668.12,Revenue,Standard Fuel Oils LtdMain,0
South Ribble Borough Council,http://statistics.data.gov.uk/id/local-authority/30UE,Service Management & Support,Diesel Fuel,3132,"17000 Ltrs Diesel @ 112.93 ppl into the , feeder tank at Unit 81 Bison Place, Moss , Side key for cabinet is available from the ,",24/01/2024,0000495532,19617.07,Revenue,Standard Fuel Oils LtdMain,0
South Ribble Borough Council,http://statistics.data.gov.uk/id/local-authority/30UE,Capital,Capital Grant,C570,"DFG WORK TO SUPPLY AND INSTALL A STAIRLIFT AT ADDRESS REDACTED AS PER QUOTE SUPPLIED OF 7299.00, TOTAL COST 7299.00",24/01/2024,0000495530,7299,Revenue,Stannah Lift Services Ltd,0
South Ribble Borough Council,http://statistics.data.gov.uk/id/local-authority/30UE,Capital,Capital Grant,C570,"DFG WORK TO SUPPLY AND INSTALL A STAIRLIFT AT ADDRESS REDACTED AS PER QUOTE SUPPLIED OF 3067.00, TOTAL COST",24/01/2024,0000495531,2954,Revenue,Stannah Lift Services Ltd,0
South Ribble Borough Council,http://statistics.data.gov.uk/id/local-authority/30UE,Capital,Cap Contract Payment,C230,Base coat to render old hall wall,24/01/2024,0000495565,1450,Revenue,Stone Technical Services Group Ltd,0
South Ribble Borough Council,http://statistics.data.gov.uk/id/local-authority/30UE,Central Support Services,External Contractors Charges,4570,Scanning of Microfiche,03/01/2024,0000493858,4550.04,Revenue,Storetec Services Limited,0
South Ribble Borough Council,http://statistics.data.gov.uk/id/local-authority/30UE,Central Support Services,External Contractors Charges,4570,Scanning of Microfiche,10/01/2024,0000494707,11214.22,Revenue,Storetec Services Limited,0
South Ribble Borough Council,http://statistics.data.gov.uk/id/local-authority/30UE,Central Support Services,Planned Annual Repair & Maintenance,2021,Annual Contract for 2023/2024 for the moveable walls x 2 Moveo - 2 service visits per year in the Civic Suite ref SNO-SQ-1622 as ,24/01/2024,0000495529,540,Revenue,STYLE MOVEABLE PARTITION SPECIALISTS,0
South Ribble Borough Council,http://statistics.data.gov.uk/id/local-authority/30UE,Community Development,Miscellaneous Expenses,4851,0,31/01/2024,0000495582,625,Revenue,Susan Hobson,0
South Ribble Borough Council,http://statistics.data.gov.uk/id/local-authority/30UE,Central Support Services,External Contractors Charges,4570,"Spec repair, VIN REDACTED, JFC21167",31/01/2024,0000495716,4086.7,Revenue,TERBERG MATEC UK LTD,0
South Ribble Borough Council,http://statistics.data.gov.uk/id/local-authority/30UE,Open Spaces,GM Refurbishment,4657,Survey of Worden Park fountain shell,31/01/2024,0000495188,780,Revenue,The Fountain Company Limited,0
South Ribble Borough Council,http://statistics.data.gov.uk/id/local-authority/30UE,Cash and Cash Equivalents,Amount Paid,0030,donation,10/01/2024,0000494755,1026.61,Revenue,The National Autistic Society,0
South Ribble Borough Council,http://statistics.data.gov.uk/id/local-authority/30UE,Central Support Services,Software Licensing,4243,Renewal of Cloud Connect (1000 concurrent users) 31/07/2023 - 31/07/2024,17/01/2024,0000494935,2950,Revenue,The Networking People (TNP) Ltd,0
South Ribble Borough Council,http://statistics.data.gov.uk/id/local-authority/30UE,Capital,Capital Grant,C570,3RD AND FINAL PAYMENT FOR OT ASSESSMENTS FOR DFG CASES FROM THE OT SERVICE,24/01/2024,0000495418,10810,Revenue,THE OT SERVICE LTD,0
South Ribble Borough Council,http://statistics.data.gov.uk/id/local-authority/30UE,Central Support Services,Members Subsistence,4621,NAME REDACTED - Agency worker,03/01/2024,0000494617,1080,Revenue,The Oyster Partnership,0
South Ribble Borough Council,http://statistics.data.gov.uk/id/local-authority/30UE,Central Support Services,Members Subsistence,4621,NAME REDACTED - Agency worker,31/01/2024,0000494694,1192.8,Revenue,The Oyster Partnership,0
South Ribble Borough Council,http://statistics.data.gov.uk/id/local-authority/30UE,Central Support Services,Members Subsistence,4621,NAME REDACTED - Agency worker,31/01/2024,0000494864,1350.55,Revenue,The Oyster Partnership,0
South Ribble Borough Council,http://statistics.data.gov.uk/id/local-authority/30UE,Central Support Services,Members Subsistence,4621,NAME REDACTED - Agency worker,17/01/2024,0000495084,1282.35,Revenue,The Oyster Partnership,0
South Ribble Borough Council,http://statistics.data.gov.uk/id/local-authority/30UE,Central Support Services,Members Subsistence,4621,NAME REDACTED - Agency worker,31/01/2024,0000495199,1435.65,Revenue,The Oyster Partnership,0
South Ribble Borough Council,http://statistics.data.gov.uk/id/local-authority/30UE,Central Support Services,Members Subsistence,4621,NAME REDACTED - Agency worker,31/01/2024,0000495402,1050,Revenue,The Oyster Partnership,0
South Ribble Borough Council,http://statistics.data.gov.uk/id/local-authority/30UE,Central Support Services,Members Subsistence,4621,NAME REDACTED - Agency worker,31/01/2024,0000495618,1050,Revenue,The Oyster Partnership,0
South Ribble Borough Council,http://statistics.data.gov.uk/id/local-authority/30UE,Tourism,Electricity,2303,1/12 to 31/12/23,24/01/2024,0000495382,9505.24,Revenue,Total Gas & Power (Elec) 3006014935 - Worden Hall,0
South Ribble Borough Council,http://statistics.data.gov.uk/id/local-authority/30UE,Central Support Services,Electricity,2303,1/12 to 31/12/23,24/01/2024,0000495381,10522.6,Revenue,Total Gas & Power (Elec) 3006014946 - Civic Centre,0
